[Event "Titled Tuesday Blitz January 04 2022"]
[White "Nakamura, Hikaru"]
[Black "Tristan, Leonardo"]
[WhiteFideId "2016192"]
[BlackFideId "113816"]
[WhiteElo "2850"]
[BlackElo "2404"]
[Result "1-0"]
[Round "09"]
[TimeControl "180+1"]
[Date "2022.01.04"]
[WhiteClock "0:01:30"]
[BlackClock "0:00:13"]

1. Nf3 {[%clk 0:03:00]}  d5 {[%clk 0:03:00]} 2. e3 {[%clk 0:02:59]}  Nf6 {[%clk 0:02:59]} 3. d4 {[%clk 0:02:55]}  e6 {[%clk 0:02:51]} 4. c4 {[%clk 0:02:55]}  b6 {[%clk 0:02:52]} 5. cxd5 {[%clk 0:02:55]}  exd5 {[%clk 0:02:52]} 6. Bb5+ {[%clk 0:02:56]}  c6 {[%clk 0:02:51]} 7. Bd3 {[%clk 0:02:56]}  Bd6 {[%clk 0:02:51]} 8. Nc3 {[%clk 0:02:51]}  O-O {[%clk 0:02:49]} 9. Ne5 {[%clk 0:02:52]}  c5 {[%clk 0:02:37]} 10. O-O {[%clk 0:02:43]}  Bb7 {[%clk 0:02:28]} 11. f4 {[%clk 0:02:42]}  Nbd7 {[%clk 0:02:24]} 12. Bd2 {[%clk 0:02:41]}  Ne4 {[%clk 0:02:24]} 13. Be1 {[%clk 0:02:37]}  f6 {[%clk 0:01:52]} 14. Nxd7 {[%clk 0:02:30]}  Qxd7 {[%clk 0:01:39]} 15. Nxe4 {[%clk 0:02:29]}  dxe4 {[%clk 0:01:38]} 16. Bc4+ {[%clk 0:02:29]}  Kh8 {[%clk 0:01:38]} 17. dxc5 {[%clk 0:02:28]}  bxc5 {[%clk 0:01:39]} 18. Bc3 {[%clk 0:02:28]}  Rad8 {[%clk 0:01:33]} 19. Qh5 {[%clk 0:02:23]}  Qe8 {[%clk 0:01:20]} 20. Qe2 {[%clk 0:02:20]}  f5 {[%clk 0:01:15]} 21. g4 {[%clk 0:02:16]}  Qg6 {[%clk 0:00:54]} 22. g5 {[%clk 0:02:14]}  Bc6 {[%clk 0:00:53]} 23. Ba5 {[%clk 0:02:06]}  Rb8 {[%clk 0:00:52]} 24. Rad1 {[%clk 0:02:05]}  Be8 {[%clk 0:00:51]} 25. h4 {[%clk 0:02:02]}  Be7 {[%clk 0:00:50]} 26. Rd2 {[%clk 0:01:56]}  Bf7 {[%clk 0:00:46]} 27. Rc1 {[%clk 0:01:50]}  Bxc4 {[%clk 0:00:45]} 28. Rxc4 {[%clk 0:01:50]}  Qa6 {[%clk 0:00:35]} 29. Ra4 {[%clk 0:01:47]}  Rb5 {[%clk 0:00:26]} 30. b3 {[%clk 0:01:47]}  Qc6 {[%clk 0:00:21]} 31. Bc3 {[%clk 0:01:46]}  Rb7 {[%clk 0:00:20]} 32. Ra6 {[%clk 0:01:43]}  Qe8 {[%clk 0:00:18]} 33. h5 {[%clk 0:01:42]}  Rd7 {[%clk 0:00:18]} 34. h6 {[%clk 0:01:41]}  Kg8 {[%clk 0:00:14]} 35. hxg7 {[%clk 0:01:33]}  Rf7 {[%clk 0:00:14]} 36. Qb5 {[%clk 0:01:31]}  Bd8 {[%clk 0:00:13]} 37. Rad6 {[%clk 0:01:30]} 1-0


[Site "https://www.chess.com"]

[Event "Titled Tuesday Blitz January 04 2022"]
[White "Narayanan.S.L"]
[Black "Vakhlamov, Igor L."]
[WhiteFideId "5058422"]
[BlackFideId "24126748"]
[WhiteElo "2494"]
[BlackElo "2401"]
[Result "1-0"]
[Round "09"]
[TimeControl "180+1"]
[Date "2022.01.04"]
[WhiteClock "0:01:31"]
[BlackClock "0:00:06"]

1. c4 {[%clk 0:03:00]}  Nf6 {[%clk 0:02:58]} 2. Nc3 {[%clk 0:03:01]}  c5 {[%clk 0:02:58]} 3. Nf3 {[%clk 0:03:01]}  Nc6 {[%clk 0:02:58]} 4. e3 {[%clk 0:03:01]}  e6 {[%clk 0:02:55]} 5. d4 {[%clk 0:03:01]}  d5 {[%clk 0:02:54]} 6. a3 {[%clk 0:03:01]}  a6 {[%clk 0:02:53]} 7. dxc5 {[%clk 0:03:00]}  Bxc5 {[%clk 0:02:54]} 8. b4 {[%clk 0:03:00]}  Bd6 {[%clk 0:02:48]} 9. Ra2 {[%clk 0:03:00]}  O-O {[%clk 0:02:40]} 10. Rd2 {[%clk 0:03:00]}  Qe7 {[%clk 0:02:40]} 11. Bb2 {[%clk 0:02:59]}  Rd8 {[%clk 0:02:34]} 12. cxd5 {[%clk 0:02:56]}  exd5 {[%clk 0:02:35]} 13. Be2 {[%clk 0:02:55]}  Be6 {[%clk 0:02:17]} 14. O-O {[%clk 0:02:55]}  Rac8 {[%clk 0:02:10]} 15. h3 {[%clk 0:02:50]}  Ne5 {[%clk 0:02:04]} 16. Nd4 {[%clk 0:02:46]}  Nc4 {[%clk 0:02:00]} 17. Bxc4 {[%clk 0:02:46]}  Rxc4 {[%clk 0:02:01]} 18. Qf3 {[%clk 0:02:45]}  Be5 {[%clk 0:01:43]} 19. Rfd1 {[%clk 0:02:44]}  Rdc8 {[%clk 0:01:33]} 20. Rd3 {[%clk 0:02:31]}  h6 {[%clk 0:01:30]} 21. Nce2 {[%clk 0:02:13]}  Ne4 {[%clk 0:01:12]} 22. Nxe6 {[%clk 0:02:13]}  Bxb2 {[%clk 0:01:05]} 23. N6f4 {[%clk 0:02:13]}  Nf6 {[%clk 0:00:54]} 24. Nxd5 {[%clk 0:02:11]}  Nxd5 {[%clk 0:00:54]} 25. Qxd5 {[%clk 0:02:12]}  Rc2 {[%clk 0:00:53]} 26. Ng3 {[%clk 0:02:08]}  Be5 {[%clk 0:00:50]} 27. Nf5 {[%clk 0:01:59]}  Qf6 {[%clk 0:00:50]} 28. Qf3 {[%clk 0:02:00]}  Kh7 {[%clk 0:00:45]} 29. Rd7 {[%clk 0:01:57]}  Ra2 {[%clk 0:00:43]} 30. Qd5 {[%clk 0:01:35]}  Qxf5 {[%clk 0:00:19]} 31. Qxa2 {[%clk 0:01:33]}  Rc2 {[%clk 0:00:10]} 32. Qxf7 {[%clk 0:01:33]}  Rxf2 {[%clk 0:00:05]} 33. Qxf5+ {[%clk 0:01:33]}  Rxf5 {[%clk 0:00:06]} 34. R7d5 {[%clk 0:01:32]}  Kg6 {[%clk 0:00:05]} 35. g4 {[%clk 0:01:31]}  Rg5 {[%clk 0:00:05]} 36. Kg2 {[%clk 0:01:32]}  h5 {[%clk 0:00:05]} 37. Kf3 {[%clk 0:01:33]}  hxg4+ {[%clk 0:00:05]} 38. hxg4 {[%clk 0:01:33]}  Kf6 {[%clk 0:00:06]} 39. Rd7 {[%clk 0:01:33]}  b5 {[%clk 0:00:06]} 40. Ra7 {[%clk 0:01:32]}  Bb2 {[%clk 0:00:05]} 41. Rxa6+ {[%clk 0:01:32]}  Ke7 {[%clk 0:00:06]} 42. Rd2 {[%clk 0:01:31]}  Rd5 {[%clk 0:00:06]} 43. Rxd5 {[%clk 0:01:31]} 1-0


[Site "https://www.chess.com"]

[Event "Titled Tuesday Blitz January 04 2022"]
[White "Nepomniachtchi, Ian"]
[Black "Ibrahimli, Murad"]
[WhiteFideId "4168119"]
[BlackFideId "13410229"]
[WhiteElo "2740"]
[BlackElo "2109"]
[Result "1-0"]
[Round "09"]
[TimeControl "180+1"]
[Date "2022.01.04"]
[WhiteClock "0:01:33"]
[BlackClock "0:00:02"]

1. e4 {[%clk 0:03:00]}  c5 {[%clk 0:03:00]} 2. Nf3 {[%clk 0:03:00]}  d6 {[%clk 0:03:00]} 3. d4 {[%clk 0:03:01]}  cxd4 {[%clk 0:03:01]} 4. Nxd4 {[%clk 0:03:02]}  Nf6 {[%clk 0:03:01]} 5. Nc3 {[%clk 0:03:03]}  a6 {[%clk 0:03:02]} 6. Rg1 {[%clk 0:03:03]}  e5 {[%clk 0:03:02]} 7. Nb3 {[%clk 0:03:02]}  h5 {[%clk 0:03:02]} 8. Bg5 {[%clk 0:03:02]}  Be6 {[%clk 0:03:02]} 9. Qd2 {[%clk 0:03:00]}  Nbd7 {[%clk 0:03:02]} 10. f4 {[%clk 0:03:00]}  Rc8 {[%clk 0:03:01]} 11. Bd3 {[%clk 0:03:00]}  Be7 {[%clk 0:02:59]} 12. O-O-O {[%clk 0:02:59]}  b5 {[%clk 0:02:55]} 13. Kb1 {[%clk 0:02:59]}  Qc7 {[%clk 0:02:47]} 14. h3 {[%clk 0:02:59]}  h4 {[%clk 0:02:46]} 15. Rgf1 {[%clk 0:02:59]}  Nb6 {[%clk 0:02:32]} 16. a3 {[%clk 0:02:41]}  Na4 {[%clk 0:02:22]} 17. Nd5 {[%clk 0:02:37]}  Nxd5 {[%clk 0:02:09]} 18. exd5 {[%clk 0:02:37]}  Bxg5 {[%clk 0:02:08]} 19. dxe6 {[%clk 0:02:35]}  Bxf4 {[%clk 0:02:06]} 20. exf7+ {[%clk 0:02:34]}  Kf8 {[%clk 0:02:04]} 21. Rxf4 {[%clk 0:02:32]}  exf4 {[%clk 0:02:05]} 22. Qxf4 {[%clk 0:02:32]}  Qe7 {[%clk 0:01:52]} 23. Rf1 {[%clk 0:02:22]}  Qe5 {[%clk 0:01:49]} 24. Qc1 {[%clk 0:02:11]}  Rh6 {[%clk 0:01:31]} 25. Rf5 {[%clk 0:02:10]}  Qg3 {[%clk 0:01:28]} 26. Nd4 {[%clk 0:01:58]}  Nc5 {[%clk 0:01:25]} 27. Rf3 {[%clk 0:01:55]}  Qxg2 {[%clk 0:01:16]} 28. Qe3 {[%clk 0:01:49]}  Nxd3 {[%clk 0:00:38]} 29. cxd3 {[%clk 0:01:46]}  Rf6 {[%clk 0:00:18]} 30. Rxf6 {[%clk 0:01:46]}  gxf6 {[%clk 0:00:19]} 31. Qe6 {[%clk 0:01:46]}  Qb7 {[%clk 0:00:09]} 32. Nf5 {[%clk 0:01:39]}  Qc7 {[%clk 0:00:04]} 33. Nxd6 {[%clk 0:01:34]}  Rd8 {[%clk 0:00:02]} 34. Qe8+ {[%clk 0:01:33]} 1-0


[Site "https://www.chess.com"]

[Event "Titled Tuesday Blitz January 04 2022"]
[White "Nguyen, Ngoc Truong Son"]
[Black "Lorparizangeneh, Shahin"]
[WhiteFideId "12401110"]
[BlackFideId "12521604"]
[WhiteElo "2596"]
[BlackElo "2525"]
[Result "0-1"]
[Round "09"]
[TimeControl "180+1"]
[Date "2022.01.04"]
[WhiteClock "0:00:04"]
[BlackClock "0:00:19"]

1. d4 {[%clk 0:03:00]}  d5 {[%clk 0:02:58]} 2. Nf3 {[%clk 0:03:01]}  Nf6 {[%clk 0:02:58]} 3. c4 {[%clk 0:03:02]}  e6 {[%clk 0:02:57]} 4. Nc3 {[%clk 0:03:01]}  a6 {[%clk 0:02:56]} 5. cxd5 {[%clk 0:03:00]}  exd5 {[%clk 0:02:57]} 6. Bf4 {[%clk 0:03:00]}  Bd6 {[%clk 0:02:55]} 7. Bg3 {[%clk 0:02:58]}  O-O {[%clk 0:02:52]} 8. e3 {[%clk 0:02:58]}  c6 {[%clk 0:02:47]} 9. Bd3 {[%clk 0:02:57]}  Re8 {[%clk 0:02:48]} 10. Qc2 {[%clk 0:02:57]}  a5 {[%clk 0:02:44]} 11. O-O-O {[%clk 0:02:57]}  Na6 {[%clk 0:02:44]} 12. a3 {[%clk 0:02:54]}  Bg4 {[%clk 0:02:31]} 13. Bh4 {[%clk 0:02:43]}  h6 {[%clk 0:02:20]} 14. h3 {[%clk 0:02:39]}  Bxf3 {[%clk 0:02:20]} 15. gxf3 {[%clk 0:02:40]}  b5 {[%clk 0:02:20]} 16. Rdg1 {[%clk 0:01:31]}  b4 {[%clk 0:02:19]} 17. Ne4 {[%clk 0:01:24]}  dxe4 {[%clk 0:02:10]} 18. fxe4 {[%clk 0:01:25]}  bxa3 {[%clk 0:02:03]} 19. e5 {[%clk 0:01:22]}  axb2+ {[%clk 0:01:51]} 20. Kb1 {[%clk 0:01:21]}  Be7 {[%clk 0:01:40]} 21. Bxf6 {[%clk 0:00:47]}  Bxf6 {[%clk 0:01:41]} 22. Bc4 {[%clk 0:00:48]}  Kh8 {[%clk 0:01:07]} 23. Bxf7 {[%clk 0:00:43]}  Rf8 {[%clk 0:00:55]} 24. Bc4 {[%clk 0:00:32]}  Nb4 {[%clk 0:00:48]} 25. Qg6 {[%clk 0:00:27]}  Qe7 {[%clk 0:00:43]} 26. f4 {[%clk 0:00:19]}  a4 {[%clk 0:00:40]} 27. Qh5 {[%clk 0:00:06]}  a3 {[%clk 0:00:36]} 28. Rg6 {[%clk 0:00:06]}  a2+ {[%clk 0:00:30]} 29. Kxb2 {[%clk 0:00:05]}  Rab8 {[%clk 0:00:20]} 30. Kc3 {[%clk 0:00:04]}  Nd5+ {[%clk 0:00:19]} 0-1


[Site "https://www.chess.com"]

[Event "Titled Tuesday Blitz January 04 2022"]
[White "Pelopidass"]
[Black "Moskalenko, Alexander"]
[BlackFideId "4155351"]
[WhiteElo "2627"]
[BlackElo "2515"]
[Result "0-1"]
[Round "09"]
[TimeControl "180+1"]
[Date "2022.01.04"]
[WhiteClock "0:00:09"]
[BlackClock "0:00:14"]

1. d4 {[%clk 0:03:00]}  Nf6 {[%clk 0:02:57]} 2. Nf3 {[%clk 0:03:01]}  e6 {[%clk 0:02:57]} 3. g3 {[%clk 0:03:01]}  b6 {[%clk 0:02:57]} 4. Bg2 {[%clk 0:03:01]}  Bb7 {[%clk 0:02:57]} 5. O-O {[%clk 0:03:01]}  Be7 {[%clk 0:02:13]} 6. c4 {[%clk 0:03:01]}  O-O {[%clk 0:02:13]} 7. Nc3 {[%clk 0:03:01]}  Ne4 {[%clk 0:02:13]} 8. Bd2 {[%clk 0:03:02]}  Bf6 {[%clk 0:02:08]} 9. Be1 {[%clk 0:03:00]}  c5 {[%clk 0:02:03]} 10. Qd3 {[%clk 0:02:54]}  Nxc3 {[%clk 0:02:01]} 11. Ng5 {[%clk 0:02:27]}  Bxg5 {[%clk 0:01:38]} 12. Bxb7 {[%clk 0:02:24]}  Nc6 {[%clk 0:01:38]} 13. Bxc3 {[%clk 0:02:07]}  Rb8 {[%clk 0:01:14]} 14. Bxc6 {[%clk 0:02:07]}  dxc6 {[%clk 0:01:15]} 15. dxc5 {[%clk 0:02:06]}  Qxd3 {[%clk 0:01:15]} 16. exd3 {[%clk 0:02:06]}  bxc5 {[%clk 0:01:15]} 17. d4 {[%clk 0:02:01]}  Bf6 {[%clk 0:01:12]} 18. dxc5 {[%clk 0:01:54]}  Bxc3 {[%clk 0:01:07]} 19. bxc3 {[%clk 0:01:55]}  Rb2 {[%clk 0:01:04]} 20. Rfb1 {[%clk 0:01:46]}  Rc2 {[%clk 0:01:01]} 21. Rc1 {[%clk 0:01:46]}  Rd2 {[%clk 0:00:59]} 22. Rd1 {[%clk 0:01:46]}  Rfd8 {[%clk 0:00:59]} 23. Rxd2 {[%clk 0:01:46]}  Rxd2 {[%clk 0:01:00]} 24. Rb1 {[%clk 0:01:46]}  g6 {[%clk 0:01:00]} 25. Rb7 {[%clk 0:01:33]}  Rxa2 {[%clk 0:00:59]} 26. Rc7 {[%clk 0:01:33]}  Ra4 {[%clk 0:00:58]} 27. Rxc6 {[%clk 0:01:29]}  Rxc4 {[%clk 0:00:58]} 28. Ra6 {[%clk 0:01:18]}  Rxc5 {[%clk 0:00:56]} 29. Rxa7 {[%clk 0:01:18]}  Rxc3 {[%clk 0:00:56]} 30. g4 {[%clk 0:01:15]}  Kg7 {[%clk 0:00:43]} 31. Kg2 {[%clk 0:01:10]}  g5 {[%clk 0:00:43]} 32. h3 {[%clk 0:01:00]}  h5 {[%clk 0:00:42]} 33. Ra5 {[%clk 0:00:57]}  Kf6 {[%clk 0:00:40]} 34. gxh5 {[%clk 0:00:48]}  Rc4 {[%clk 0:00:36]} 35. f3 {[%clk 0:00:28]}  Rh4 {[%clk 0:00:36]} 36. Rb5 {[%clk 0:00:24]}  Rxh5 {[%clk 0:00:35]} 37. Kg3 {[%clk 0:00:20]}  Rh4 {[%clk 0:00:35]} 38. Rb8 {[%clk 0:00:19]}  Rc4 {[%clk 0:00:34]} 39. Rg8 {[%clk 0:00:19]}  Kf5 {[%clk 0:00:34]} 40. Rf8 {[%clk 0:00:17]}  f6 {[%clk 0:00:35]} 41. Ra8 {[%clk 0:00:17]}  Rc3 {[%clk 0:00:35]} 42. Ra5+ {[%clk 0:00:17]}  e5 {[%clk 0:00:36]} 43. Ra4 {[%clk 0:00:18]}  Rd3 {[%clk 0:00:36]} 44. Rb4 {[%clk 0:00:18]}  Kg6 {[%clk 0:00:36]} 45. Kg2 {[%clk 0:00:18]}  Rd4 {[%clk 0:00:34]} 46. Rb6 {[%clk 0:00:18]}  Kf5 {[%clk 0:00:34]} 47. Ra6 {[%clk 0:00:17]}  Rd3 {[%clk 0:00:32]} 48. Rb6 {[%clk 0:00:17]}  Ra3 {[%clk 0:00:31]} 49. Rc6 {[%clk 0:00:17]}  Kg6 {[%clk 0:00:30]} 50. Rb6 {[%clk 0:00:17]}  Kf7 {[%clk 0:00:26]} 51. Rc6 {[%clk 0:00:16]}  Ra4 {[%clk 0:00:21]} 52. Rb6 {[%clk 0:00:16]}  e4 {[%clk 0:00:20]} 53. fxe4 {[%clk 0:00:16]}  Rxe4 {[%clk 0:00:21]} 54. Kg3 {[%clk 0:00:15]}  Re3+ {[%clk 0:00:20]} 55. Kg2 {[%clk 0:00:14]}  Kg6 {[%clk 0:00:20]} 56. Rc6 {[%clk 0:00:13]}  Kf5 {[%clk 0:00:20]} 57. Rc5+ {[%clk 0:00:13]}  Re5 {[%clk 0:00:21]} 58. Rc4 {[%clk 0:00:14]}  Re4 {[%clk 0:00:20]} 59. Rc6 {[%clk 0:00:14]}  Re6 {[%clk 0:00:20]} 60. Rc5+ {[%clk 0:00:14]}  Kg6 {[%clk 0:00:20]} 61. Rb5 {[%clk 0:00:14]}  f5 {[%clk 0:00:21]} 62. Rc5 {[%clk 0:00:14]}  Kf6 {[%clk 0:00:20]} 63. Rc8 {[%clk 0:00:14]}  Ke5 {[%clk 0:00:19]} 64. Rg8 {[%clk 0:00:13]}  Kf4 {[%clk 0:00:19]} 65. Ra8 {[%clk 0:00:11]}  Re2+ {[%clk 0:00:19]} 66. Kf1 {[%clk 0:00:11]}  Rd2 {[%clk 0:00:17]} 67. Ra3 {[%clk 0:00:08]}  Ke4 {[%clk 0:00:16]} 68. Kg1 {[%clk 0:00:07]}  Rd3 {[%clk 0:00:16]} 69. Ra5 {[%clk 0:00:06]}  Rxh3 {[%clk 0:00:14]} 70. Ra4+ {[%clk 0:00:06]}  Ke5 {[%clk 0:00:14]} 71. Kg2 {[%clk 0:00:06]}  g4 {[%clk 0:00:14]} 72. Ra5+ {[%clk 0:00:06]}  Kf4 {[%clk 0:00:15]} 73. Ra4+ {[%clk 0:00:06]}  Kg5 {[%clk 0:00:15]} 74. Ra8 {[%clk 0:00:07]}  Rc3 {[%clk 0:00:15]} 75. Rg8+ {[%clk 0:00:08]}  Kf4 {[%clk 0:00:16]} 76. Ra8 {[%clk 0:00:09]}  Rc2+ {[%clk 0:00:16]} 77. Kf1 {[%clk 0:00:09]}  Kg3 {[%clk 0:00:14]} 78. Ra3+ {[%clk 0:00:10]}  Kh4 {[%clk 0:00:15]} 79. Ra4 {[%clk 0:00:09]}  Kg5 {[%clk 0:00:14]} 80. Ra5 {[%clk 0:00:09]}  g3 {[%clk 0:00:14]} 81. Kg1 {[%clk 0:00:09]}  Kg4 {[%clk 0:00:14]} 82. Ra3 {[%clk 0:00:09]}  f4 {[%clk 0:00:14]} 83. Ra8 {[%clk 0:00:09]}  Rc1+ {[%clk 0:00:14]} 0-1


[Site "https://www.chess.com"]

[Event "Titled Tuesday Blitz January 04 2022"]
[White "Pichot, Alan"]
[Black "Padmini, Rout"]
[WhiteFideId "110973"]
[BlackFideId "5029295"]
[WhiteElo "2543"]
[BlackElo "2181"]
[Result "1-0"]
[Round "09"]
[TimeControl "180+1"]
[Date "2022.01.04"]
[WhiteClock "0:02:12"]
[BlackClock "0:02:12"]

1. e4 {[%clk 0:03:00]}  c5 {[%clk 0:02:59]} 2. Nf3 {[%clk 0:03:00]}  Nc6 {[%clk 0:02:55]} 3. d4 {[%clk 0:03:00]}  cxd4 {[%clk 0:02:56]} 4. Nxd4 {[%clk 0:03:01]}  g6 {[%clk 0:02:56]} 5. c4 {[%clk 0:03:01]}  Bg7 {[%clk 0:02:56]} 6. Be3 {[%clk 0:03:01]}  Nf6 {[%clk 0:02:56]} 7. Nc3 {[%clk 0:03:02]}  O-O {[%clk 0:02:56]} 8. Be2 {[%clk 0:03:02]}  d6 {[%clk 0:02:57]} 9. O-O {[%clk 0:03:02]}  Bd7 {[%clk 0:02:56]} 10. h3 {[%clk 0:03:03]}  Nxd4 {[%clk 0:02:56]} 11. Bxd4 {[%clk 0:03:04]}  Bc6 {[%clk 0:02:56]} 12. Qc2 {[%clk 0:03:04]}  a5 {[%clk 0:02:54]} 13. Rad1 {[%clk 0:03:05]}  a4 {[%clk 0:02:55]} 14. Rfe1 {[%clk 0:03:04]}  Qa5 {[%clk 0:02:54]} 15. Bf1 {[%clk 0:03:00]}  Rfc8 {[%clk 0:02:51]} 16. Qb1 {[%clk 0:02:54]}  Nd7 {[%clk 0:02:44]} 17. Nd5 {[%clk 0:02:46]}  Bxd5 {[%clk 0:02:42]} 18. exd5 {[%clk 0:02:46]}  Bf6 {[%clk 0:02:18]} 19. Qe4 {[%clk 0:02:17]}  Nc5 {[%clk 0:02:16]} 20. Qf4 {[%clk 0:02:14]}  Kg7 {[%clk 0:02:12]} 21. Rxe7 {[%clk 0:02:12]} 1-0


[Site "https://www.chess.com"]

[Event "Titled Tuesday Blitz January 04 2022"]
[White "Rychagov, Andrey"]
[Black "Omelja, Artem"]
[WhiteFideId "4119932"]
[BlackFideId "14119846"]
[WhiteElo "2500"]
[BlackElo "2418"]
[Result "1-0"]
[Round "09"]
[TimeControl "180+1"]
[Date "2022.01.04"]
[WhiteClock "0:01:16"]
[BlackClock "0:00:12"]

1. d4 {[%clk 0:03:00]}  d5 {[%clk 0:02:56]} 2. c4 {[%clk 0:02:59]}  c6 {[%clk 0:02:55]} 3. Nf3 {[%clk 0:02:58]}  Nf6 {[%clk 0:02:55]} 4. Nc3 {[%clk 0:02:58]}  e6 {[%clk 0:02:52]} 5. e3 {[%clk 0:02:58]}  Nbd7 {[%clk 0:02:51]} 6. Qc2 {[%clk 0:02:57]}  Bd6 {[%clk 0:02:50]} 7. b3 {[%clk 0:02:57]}  O-O {[%clk 0:02:48]} 8. Be2 {[%clk 0:02:57]}  Re8 {[%clk 0:02:30]} 9. Bb2 {[%clk 0:02:55]}  dxc4 {[%clk 0:02:28]} 10. bxc4 {[%clk 0:02:53]}  e5 {[%clk 0:02:26]} 11. O-O {[%clk 0:02:53]}  Qc7 {[%clk 0:02:16]} 12. h3 {[%clk 0:02:52]}  exd4 {[%clk 0:01:53]} 13. exd4 {[%clk 0:02:49]}  Nf8 {[%clk 0:01:51]} 14. Rfe1 {[%clk 0:02:45]}  Ng6 {[%clk 0:01:41]} 15. Bf1 {[%clk 0:02:45]}  Bd7 {[%clk 0:01:40]} 16. Ng5 {[%clk 0:02:29]}  Bf8 {[%clk 0:01:15]} 17. c5 {[%clk 0:02:21]}  h6 {[%clk 0:01:10]} 18. Nxf7 {[%clk 0:02:18]}  Kxf7 {[%clk 0:01:04]} 19. Bc4+ {[%clk 0:02:18]}  Nd5 {[%clk 0:00:58]} 20. Nxd5 {[%clk 0:02:16]}  cxd5 {[%clk 0:00:58]} 21. Bxd5+ {[%clk 0:02:16]}  Kf6 {[%clk 0:00:58]} 22. Bb3 {[%clk 0:02:10]}  Bf5 {[%clk 0:00:31]} 23. Qc3 {[%clk 0:01:48]}  Nf4 {[%clk 0:00:22]} 24. d5+ {[%clk 0:01:37]}  Kg6 {[%clk 0:00:22]} 25. d6 {[%clk 0:01:33]}  Bxd6 {[%clk 0:00:21]} 26. Qg3+ {[%clk 0:01:26]}  Kh5 {[%clk 0:00:16]} 27. cxd6 {[%clk 0:01:21]}  Qxd6 {[%clk 0:00:16]} 28. Bd1+ {[%clk 0:01:17]}  Qxd1 {[%clk 0:00:12]} 29. Raxd1 {[%clk 0:01:16]}  Ne2+ {[%clk 0:00:11]} 30. Rxe2 {[%clk 0:01:16]}  Rxe2 {[%clk 0:00:11]} 31. Qf3+ {[%clk 0:01:17]}  Bg4 {[%clk 0:00:12]} 32. Qxg4# {[%clk 0:01:16]} 1-0


[Site "https://www.chess.com"]

[Event "Titled Tuesday Blitz January 04 2022"]
[White "Sarana, Alexey"]
[Black "Deac, Bogdan-Daniel"]
[WhiteFideId "24133795"]
[BlackFideId "1226380"]
[WhiteElo "2665"]
[BlackElo "2646"]
[Result "1-0"]
[Round "09"]
[TimeControl "180+1"]
[Date "2022.01.04"]
[WhiteClock "0:00:09"]
[BlackClock "0:00:01"]

1. d4 {[%clk 0:02:59]}  d5 {[%clk 0:03:00]} 2. c4 {[%clk 0:02:56]}  c6 {[%clk 0:03:00]} 3. Nf3 {[%clk 0:02:55]}  Nf6 {[%clk 0:03:01]} 4. Nc3 {[%clk 0:02:55]}  e6 {[%clk 0:03:01]} 5. e3 {[%clk 0:02:54]}  Nbd7 {[%clk 0:03:01]} 6. Qc2 {[%clk 0:02:54]}  b6 {[%clk 0:03:00]} 7. Bd3 {[%clk 0:02:48]}  Bb7 {[%clk 0:03:00]} 8. O-O {[%clk 0:02:49]}  dxc4 {[%clk 0:02:51]} 9. Bxc4 {[%clk 0:02:49]}  c5 {[%clk 0:02:51]} 10. Rd1 {[%clk 0:02:44]}  Qc8 {[%clk 0:02:24]} 11. Ne5 {[%clk 0:02:16]}  cxd4 {[%clk 0:02:10]} 12. Bb5 {[%clk 0:01:54]}  a6 {[%clk 0:02:02]} 13. Nxd7 {[%clk 0:01:32]}  Nxd7 {[%clk 0:01:55]} 14. Bxd7+ {[%clk 0:01:32]}  Qxd7 {[%clk 0:01:55]} 15. exd4 {[%clk 0:01:31]}  Be7 {[%clk 0:01:03]} 16. d5 {[%clk 0:01:31]}  Bxd5 {[%clk 0:00:47]} 17. Nxd5 {[%clk 0:01:24]}  exd5 {[%clk 0:00:48]} 18. Be3 {[%clk 0:01:24]}  b5 {[%clk 0:00:42]} 19. Qb3 {[%clk 0:01:13]}  O-O {[%clk 0:00:41]} 20. Rxd5 {[%clk 0:01:13]}  Qe6 {[%clk 0:00:41]} 21. Rad1 {[%clk 0:01:14]}  Bf6 {[%clk 0:00:37]} 22. Qc2 {[%clk 0:01:03]}  Rfd8 {[%clk 0:00:25]} 23. Rxd8+ {[%clk 0:00:44]}  Rxd8 {[%clk 0:00:26]} 24. Rxd8+ {[%clk 0:00:41]}  Bxd8 {[%clk 0:00:27]} 25. b3 {[%clk 0:00:41]}  h6 {[%clk 0:00:22]} 26. g3 {[%clk 0:00:41]}  Bb6 {[%clk 0:00:19]} 27. Bxb6 {[%clk 0:00:40]}  Qxb6 {[%clk 0:00:20]} 28. Qe4 {[%clk 0:00:39]}  g6 {[%clk 0:00:17]} 29. h4 {[%clk 0:00:36]}  h5 {[%clk 0:00:17]} 30. Kf1 {[%clk 0:00:36]}  Qd6 {[%clk 0:00:16]} 31. Ke2 {[%clk 0:00:35]}  Qa3 {[%clk 0:00:16]} 32. Qc2 {[%clk 0:00:34]}  Kf8 {[%clk 0:00:13]} 33. Kf3 {[%clk 0:00:32]}  Qd6 {[%clk 0:00:11]} 34. Qc8+ {[%clk 0:00:31]}  Kg7 {[%clk 0:00:10]} 35. Qc3+ {[%clk 0:00:30]}  Kg8 {[%clk 0:00:10]} 36. Ke3 {[%clk 0:00:30]}  Qa3 {[%clk 0:00:08]} 37. Qd2 {[%clk 0:00:29]}  Kf8 {[%clk 0:00:07]} 38. Kf4 {[%clk 0:00:28]}  Qe7 {[%clk 0:00:04]} 39. Qd4 {[%clk 0:00:24]}  Kg8 {[%clk 0:00:04]} 40. a4 {[%clk 0:00:23]}  bxa4 {[%clk 0:00:03]} 41. bxa4 {[%clk 0:00:23]}  a5 {[%clk 0:00:04]} 42. Kf3 {[%clk 0:00:20]}  Kh7 {[%clk 0:00:03]} 43. Kg2 {[%clk 0:00:19]}  Qb7+ {[%clk 0:00:03]} 44. Kf1 {[%clk 0:00:19]}  Qb3 {[%clk 0:00:03]} 45. Ke2 {[%clk 0:00:19]}  Qc2+ {[%clk 0:00:01]} 46. Ke3 {[%clk 0:00:19]}  Qb3+ {[%clk 0:00:02]} 47. Kf4 {[%clk 0:00:20]}  Qe6 {[%clk 0:00:02]} 48. Qc5 {[%clk 0:00:14]}  Qf6+ {[%clk 0:00:01]} 49. Ke3 {[%clk 0:00:14]}  Qe6+ {[%clk 0:00:01]} 50. Kd4 {[%clk 0:00:15]}  Qb3 {[%clk 0:00:01]} 51. Qxa5 {[%clk 0:00:13]}  Qb2+ {[%clk 0:00:01]} 52. Ke3 {[%clk 0:00:10]}  Qb3+ {[%clk 0:00:01]} 53. Ke2 {[%clk 0:00:09]}  Qc2+ {[%clk 0:00:01]} 54. Kf3 {[%clk 0:00:09]} 1-0


[Site "https://www.chess.com"]